fUSD/lending_fUSD_20241225
["ID","MTS","AMOUNT","RATE_DAILY","PERIOD"]
[346564907,1735091448042,-968.94295025,0.00012969,2]
[346564908,1735091448052,-500.0,0.00012969,2]
[346564909,1735091448062,-500.0,0.00012969,2]
[346564910,1735091448072,-500.0,0.00012969,2]
[346564911,1735091448083,-500.0,0.00012969,2]
[346564912,1735091448092,-193.95088533,0.00012969,2]
[346564913,1735091448274,-484.28911467,0.00012969,2]
[346564914,1735091448284,-450.1116565,0.00012969,2]
[346564915,1735091448385,-49.8883435,0.00012969,2]
[346564916,1735091448395,-444.02677182,0.00012969,2]
[346564917,1735091448406,-100.56322818,0.00012969,2]
[346564918,1735091448415,-200.78054919,0.00012969,2]
[346564919,1735091448423,-500.0,0.00012969,2]
[346564920,1735091448433,-500.0,0.00012969,2]
[346564921,1735091448442,-500.0,0.00012969,2]
[346564922,1735091448451,-500.0,0.00012969,2]
[346564923,1735091448461,-1154.9159562,0.00012969,2]
[346564924,1735091448473,-2367.9540438,0.00012969,2]
[346564925,1735091448483,-500.0,0.00012969,2]
[346564926,1735091448492,-1516.12,0.00012969,2]
[346564927,1735091448503,-500.0,0.00012969,2]
[346564928,1735091448512,-500.0,0.00012969,2]
[346564929,1735091448522,-566.62,0.00012969,2]
[346564930,1735091448531,-989.50595622,0.00012969,2]
[346564931,1735091448542,-980.32,0.00012969,2]
[346564932,1735091448554,-124.52404378,0.00012969,2]
[346564933,1735091448563,-221.98478344,0.00012969,2]
[346564934,1735091448717,-278.01521656,0.00012969,2]
[346564935,1735091448727,-500.0,0.00012969,2]
[346564936,1735091448737,-500.0,0.00012969,2]
[346564937,1735091448747,-500.0,0.00012969,2]
[346564938,1735091448757,-500.0,0.00012969,2]
[346564939,1735091448767,-500.0,0.00012969,2]
[346564940,1735091448777,-500.0,0.00012969,2]
[346564941,1735091448787,-500.0,0.00012969,2]
[346564942,1735091448798,-1457.05,0.00012969,2]
[346564943,1735091448808,-500.0,0.00012969,2]
[346564944,1735091448818,-500.0,0.00012969,2]
[346564945,1735091448827,-500.0,0.00012969,2]
[346564946,1735091448837,-388.80600363,0.00012969,2]
[346564971,1735092632718,-912.36,9.908e-05,2]
[346564972,1735092632727,-380.48,0.00010137,2]
[346564973,1735092632737,-288.23,0.00010137,2]
[346564974,1735092632749,-300.0,0.00011558,2]
[346564975,1735092632760,-250.0,0.00011609,2]
[346564976,1735092632770,-1000.0,0.00011659,2]
[346564977,1735092632780,-250.0,0.00011704,2]
[346564978,1735092632791,-500.0,0.00011753,2]
[346564979,1735092632801,-1103.62,0.00011884,2]
[346564980,1735092632810,-199.65,0.00011917,2]
[346564981,1735092632820,-300.0,0.00011962,2]
[346564982,1735092632831,-10100.0,0.00011963,2]
[346564983,1735092632841,-203.48,0.00011977,2]
[346564984,1735092632851,-203.74,0.00011977,2]
[346564985,1735092632860,-764.92,0.00011977,2]
[346564986,1735092632870,-6770.53,0.00011979,2]
[346564987,1735092632880,-250.0,0.0001199,2]
[346564988,1735092632890,-200.66,0.0001199,2]
[346564989,1735092632900,-201.72,0.0001199,2]
[346564990,1735092632909,-5675.45,0.00012,2]
[346564991,1735092632919,-20000.0,0.00012,2]
[346564992,1735092632929,-912.36,0.00012172,2]
[346564993,1735092632939,-202.27,0.00012333,2]
[346564994,1735092632949,-201.44,0.00012333,2]
[346564995,1735092632958,-201.02,0.00012333,2]
[346564996,1735092632968,-201.67,0.00012333,2]
[346564997,1735092632977,-200.33,0.00012333,2]
[346564998,1735092632987,-203.52,0.00012344,2]
[346564999,1735092632996,-1011.60276996,0.00012344,2]
[346565000,1735092633005,-393.658,0.0001235,2]
[346565001,1735092633014,-1057.0,0.00012692,2]
[346565002,1735092633024,-153.0,0.00012776,2]
[346565003,1735092633033,-153.0,0.00012776,2]
[346565004,1735092633043,-153.0,0.00012776,2]
[346565005,1735092633052,-153.0,0.00012776,2]
[346565006,1735092633062,-153.0,0.00012776,2]
[346565007,1735092633071,-153.0,0.00012776,2]
[346565008,1735092633081,-153.0,0.00012776,2]
[346565009,1735092633091,-153.0,0.00012776,2]
[346565010,1735092633100,-153.0,0.00012776,2]
[346565011,1735092633111,-153.0,0.00012776,2]
[346565012,1735092633120,-153.0,0.00012776,2]
[346565013,1735092633130,-153.0,0.00012776,2]
[346565014,1735092633139,-153.0,0.00012776,2]
[346565015,1735092633149,-153.0,0.00012776,2]
[346565016,1735092633158,-153.0,0.00012776,2]
[346565017,1735092633167,-153.0,0.00012776,2]
[346565018,1735092633176,-153.0,0.00012776,2]
[346565019,1735092633186,-153.0,0.00012776,2]
[346565020,1735092633195,-153.0,0.00012776,2]
[346565021,1735092633205,-153.0,0.00012776,2]
[346565022,1735092633215,-153.0,0.00012776,2]
[346565023,1735092633225,-153.0,0.00012776,2]
[346565024,1735092633234,-153.0,0.00012776,2]
[346565025,1735092633243,-153.0,0.00012776,2]
[346565026,1735092633252,-153.0,0.00012776,2]
[346565027,1735092633262,-153.0,0.00012776,2]
[346565028,1735092633271,-153.0,0.00012776,2]
[346565029,1735092633281,-153.0,0.00012776,2]
[346565030,1735092633290,-5000.0,0.00012864,2]
[346565031,1735092633300,-13654.83904001,0.00012891,2]
[346565032,1735092633310,-35398.31118194,0.000129,2]
[346565033,1735092635826,-711.6811421,0.000129,2]
[346565057,1735092638600,-995.29738595,0.000129,2]
[346565058,1735092638611,-1740.1219939,0.000129,2]
[346565059,1735092638622,-546.26829611,0.000129,2]
[346565060,1735092638634,-1951.26,0.000129,3]
[346565061,1735092638643,-3903.96615896,0.000129,2]
[346565062,1735092638652,-191.42208046,0.00012954,2]
[346565063,1735092638661,-11082.24714934,0.0001296,2]
[346565064,1735092638673,-1815.71779286,0.0001296,2]
[346565066,1735092638835,-785.34100842,0.0001296,2]
[346565067,1735092638846,-380.67641698,0.0001296,2]
[346565069,1735092638857,-1196.71796321,0.0001296,2]
[346565107,1735092640710,-3272.98800307,0.0001296,2]
[346565108,1735092640722,-976.7,0.0001296,2]
[346565109,1735092640733,-66494.05604874,0.0001296,2]
[346565110,1735092640744,-875.81996469,0.0001296,2]
[346565111,1735092640759,-686.1,0.0001296,2]
[346565112,1735092640770,-1202.799999,0.0001296,2]
[346565113,1735092640781,-3164.80980677,0.0001296,2]
[346565127,1735092644036,-13131.96490288,0.0001296,2]
[346565128,1735092644049,-329.19,0.0001296,2]
[346565129,1735092644061,-2006.76438248,0.0001296,2]
[346565130,1735092644073,-3281.28781095,0.0001296,2]
[346565131,1735092644084,-2847.59268996,0.0001296,2]
[346565132,1735092644232,-5189.4370075,0.0001296,2]
[346565134,1735092646551,-622.94625271,0.00012061,2]
[346565135,1735092646563,-313.20374729,0.00012061,2]
[346565136,1735092646805,-75.71560994,0.0001296,2]
[346565137,1735092646909,-1717.1631246,0.0001296,2]
[346565138,1735092646921,-9562.05765271,0.0001296,2]
[346565139,1735092646932,-1483.9727072,0.0001296,2]
[346565140,1735093154344,11454.60100414,0.0001901,120]
[346565141,1735093187266,10513.0,0.00017,60]
[346565143,1735093599829,1684.47,0.0001,10]
[346565198,1735093831870,-864.81,9.739e-05,2]
[346565199,1735093831879,-155.96,0.00010137,2]
[346565200,1735093831889,-9.99460305,0.00010884,2]
[346565201,1735093831997,-192.86539695,0.00010884,2]
[346565202,1735093832006,-330.16530525,0.00011,2]
[346565203,1735093832018,-345.08781611,0.00011,2]
[346565226,1735093837699,-326.39023094,0.00011,2]
[346565227,1735093837709,-300.0,0.0001161,2]
[346565228,1735093837719,-1918.22635302,0.00011611,2]
[346565229,1735093837731,-6408.68364698,0.00011611,2]
[346565230,1735093837740,-250.0,0.00011628,2]
[346565231,1735093837751,-637.67,0.00011633,2]
[346565232,1735093837760,-219.1,0.00011718,2]
[346565233,1735093837769,-168.97,0.00011825,2]
[346565234,1735093837778,-250.0,0.00011895,2]
[346565235,1735093837787,-987.96159279,0.00011925,2]
[346565236,1735093837838,-12.03840721,0.00011925,2]
[346565237,1735093837848,-250.0,0.00011974,2]
[346565238,1735093837857,-202.67,0.00011995,2]
[346565239,1735093837867,-202.36,0.00011995,2]
[346565240,1735093837876,-200.32,0.00011995,2]
[346565241,1735093837885,-2000.000001,0.00012,2]
[346565242,1735093837895,-864.81,0.00012003,2]
[346565243,1735093837904,-200.72,0.0001206,2]
[346565244,1735093837913,-200.18,0.0001206,2]
[346565245,1735093837922,-203.02,0.0001206,2]
[346565246,1735093837931,-200.77,0.0001206,2]
[346565247,1735093837940,-201.53,0.0001206,2]
[346565248,1735093837950,-202.53,0.0001206,2]
[346565249,1735093837959,-203.98,0.0001206,2]
[346565250,1735093837968,-202.11,0.00012061,2]
[346565251,1735093837977,-3570.81536704,0.00012341,2]
[346565252,1735093837987,-377.205,0.0001235,2]
[346565253,1735093837996,-1925.46676249,0.000125,2]
[346565254,1735093838005,-420.0,0.0001275,2]
[346565255,1735093838015,-153.0,0.00012783,2]
[346565256,1735093838024,-153.0,0.00012783,2]
[346565257,1735093838033,-153.0,0.00012783,2]
[346565258,1735093838042,-153.0,0.00012783,2]
[346565259,1735093838051,-153.0,0.00012783,2]
[346565260,1735093838060,-153.0,0.00012783,2]
[346565261,1735093838069,-153.0,0.00012783,2]
[346565262,1735093838079,-3000.0,0.0001283,2]
[346565263,1735093838088,-4297.20246226,0.0001286,2]
[346565264,1735093838100,-451.35898492,0.0001286,2]
[346565265,1735093838321,-1223.54970568,0.0001286,2]
[346565266,1735093838333,-10053.50596254,0.0001286,2]
[346565267,1735093838344,-501.5497307,0.0001286,2]
[346565268,1735093838381,-1064.34476886,0.0001286,2]
[346565269,1735093838417,-14579.60648504,0.0001286,2]
[346565270,1735093838426,-1000.0,0.00012863,2]
[346565271,1735093838438,-580.77767528,0.000129,2]
[346565272,1735093838448,-222.122511,0.00012957,2]
[346565273,1735093838457,-222.122511,0.00012957,2]
[346565274,1735093838466,-31.20541685,0.00012957,2]
[346565291,1735093839778,-190.91709415,0.00012957,2]
[346565292,1735093839787,-280.122511,0.00012958,2]
[346565293,1735093839797,-222.122511,0.00012958,2]
[346565294,1735093839806,-66.90474593,0.00012958,2]
[346565295,1735093839817,-155.21776507,0.00012958,2]
[346565296,1735093839826,-222.122511,0.00012958,2]
[346565297,1735093839835,-222.122511,0.00012958,2]
[346565298,1735093839845,-222.122511,0.00012958,2]
[346565299,1735093839854,-222.122511,0.00012958,2]
[346565300,1735093839866,-222.122511,0.00012958,2]
[346565301,1735093839875,-222.122511,0.00012958,2]
[346565302,1735093839884,-222.122511,0.00012958,2]
[346565303,1735093839893,-500.0,0.00012959,2]
[346565304,1735093839903,-1143.84,0.00012959,2]
[346565305,1735093839912,-1242.05,0.00012959,2]
[346565306,1735093839921,-2687.93,0.00012959,2]
[346565307,1735093839929,-83238.30787466,0.0001296,2]
[346565308,1735093839971,-342.108,0.0001296,2]
[346565314,1735093843116,-38733.30913823,0.0001296,2]
[346565315,1735093843126,-106167.21086174,0.0001296,2]
[346565316,1735093843138,-2793.41346617,0.0001296,2]
[346565338,1735093845885,-2706.77,0.00012959,2]
[346565339,1735093845895,-778.15,0.00012959,2]
[346565340,1735093845905,-212434.81124112,0.0001296,2]
[346565341,1735093846034,-868.61879359,0.0001296,2]
[346565343,1735094307685,2000.0,0.00011014,7]
[346565344,1735094307983,2000.0,0.00011014,7]
[346565345,1735094308308,2000.0,0.00011014,7]
[346565346,1735094308722,2000.0,0.00011014,7]
[346565347,1735094309024,2000.0,0.00011014,7]
[346565348,1735094309324,2000.0,0.00011014,7]
[346565349,1735094309619,2000.0,0.00011014,7]
[346565350,1735094309923,2000.0,0.00011014,7]
[346565351,1735094310221,2000.0,0.00011014,7]
[346565352,1735094310605,2000.0,0.00011014,7]
[346565353,1735094316199,1000.0,0.00011014,7]
[346565354,1735094316496,1000.0,0.00011014,7]
[346565355,1735094316821,1000.0,0.00011014,7]
[346565356,1735094317119,1000.0,0.00011014,7]
[346565357,1735094317416,1000.0,0.00011014,7]
[346565358,1735094318211,1000.0,0.00011014,7]
[346565359,1735094318502,1000.0,0.00011014,7]
[346565360,1735094318813,1000.0,0.00011014,7]
[346565361,1735094319110,1000.0,0.00011014,7]
[346565362,1735094319426,1000.0,0.00011014,7]
[346565363,1735094325566,500.0,0.00011014,7]
[346565364,1735094325869,500.0,0.00011014,7]
[346565365,1735094326190,500.0,0.00011014,7]
[346565366,1735094326560,500.0,0.00011014,7]
[346565367,1735094326861,500.0,0.00011014,7]
[346565368,1735094327157,500.0,0.00011014,7]
[346565369,1735094327591,500.0,0.00011014,7]
[346565370,1735094327909,500.0,0.00011014,7]
[346565371,1735094328173,500.0,0.00011014,7]
[346565372,1735094328450,500.0,0.00011014,7]
[346565373,1735094363713,500.0,0.00011014,7]
[346565374,1735094364191,500.0,0.00011014,7]
[346565375,1735094364416,500.0,0.00011014,7]
[346565376,1735094364615,500.0,0.00011014,7]
[346565377,1735094364916,500.0,0.00011014,7]
[346565378,1735094365219,500.0,0.00011014,7]
[346565379,1735094365525,500.0,0.00011014,7]
[346565380,1735094365810,500.0,0.00011014,7]
[346565381,1735094366104,500.0,0.00011014,7]
[346565382,1735094366627,500.0,0.00011014,7]
[346565419,1735095038091,-788.49,9.779e-05,2]
[346565420,1735095038102,-377.86,0.00010137,2]
[346565421,1735095038112,-2313.61245904,0.00011518,2]
[346565422,1735095038125,-117.30181096,0.00011518,2]
[346565423,1735095038134,-1000.0,0.00011544,2]
[346565424,1735095038144,-250.0,0.00011577,2]
[346565425,1735095038153,-446.44,0.00011742,2]
[346565426,1735095038162,-203.41,0.00011773,2]
[346565427,1735095038171,-203.4,0.00011773,2]
[346565428,1735095038181,-950.62,0.00011794,2]
[346565429,1735095038190,-150.0,0.00011808,2]
[346565430,1735095038199,-300.0,0.00011832,2]
[346565431,1735095038208,-201.37,0.00011833,2]
[346565432,1735095038218,-201.49,0.00011833,2]
[346565433,1735095038227,-200.38,0.00011833,2]
[346565434,1735095038237,-203.36,0.00011833,2]
[346565435,1735095038246,-859.16,0.00011861,2]
[346565436,1735095038256,-201.15,0.00011893,2]
[346565437,1735095038266,-188.75365207,0.00011893,2]
[346565438,1735095038278,-13.61634793,0.00011893,2]
[346565439,1735095038287,-201.27,0.00011893,2]
[346565440,1735095038297,-200.72,0.00011893,2]
[346565441,1735095038306,-250.0,0.00011953,2]
[346565442,1735095038315,-203.3,0.00011953,2]
[346565443,1735095038324,-202.95,0.00011953,2]
[346565444,1735095038336,-200.61,0.00011953,2]
[346565445,1735095038346,-200.86,0.00011953,2]
[346565447,1735095038357,-201.93,0.00011956,2]
[346565448,1735095038366,-201.55,0.00011956,2]
[346565449,1735095038375,-200.68,0.00011956,2]
[346565450,1735095038385,-201.21,0.00011956,2]
[346565451,1735095038394,-202.19,0.00011956,2]
[346565452,1735095038403,-201.26,0.00011956,2]
[346565453,1735095038412,-202.92,0.00011956,2]
[346565454,1735095038421,-202.75,0.00011956,2]
[346565455,1735095038430,-203.43,0.00011956,2]
[346565456,1735095038439,-201.03,0.00011956,2]
[346565457,1735095038448,-202.08,0.00011956,2]
[346565458,1735095038457,-2000.0,0.00012027,15]
[346565459,1735095038467,-2000.0,0.00012027,15]
[346565460,1735095038476,-2000.0,0.00012027,15]
[346565461,1735095038485,-2000.0,0.00012027,15]
[346565462,1735095038495,-2000.0,0.00012027,15]
[346565463,1735095038503,-2000.0,0.00012027,15]
[346565464,1735095038512,-2000.0,0.00012027,15]
[346565465,1735095038522,-2000.0,0.00012027,15]
[346565466,1735095038532,-441.9885867,0.00012027,15]
[346565467,1735095038543,-1558.0114133,0.00012027,15]
[346565468,1735095038552,-1207.1042188,0.00012027,15]
[346565469,1735095040245,-694.59000001,0.00012027,15]
[346565470,1735095040256,-98.30578119,0.00012027,15]
[346565471,1735095040265,-1000.0,0.00012027,15]
[346565472,1735095040275,-1000.0,0.00012027,15]
[346565473,1735095040284,-855.98909984,0.00012027,15]
[346565474,1735095040295,-144.01090016,0.00012027,15]
[346565475,1735095040304,-595.02764117,0.00012027,15]
[346565476,1735095040315,-404.97235883,0.00012027,15]
[346565477,1735095040324,-95.01589642,0.00012027,15]
[346565478,1735095040335,-904.98410358,0.00012027,15]
[346565479,1735095040345,-1000.0,0.00012027,15]
[346565480,1735095040354,-866.25527193,0.00012027,15]
[346565481,1735095040370,-133.74472807,0.00012027,15]
[346565482,1735095040379,-491.04589731,0.00012027,15]
[346565483,1735095040390,-508.95410269,0.00012027,15]
[346565484,1735095040400,-688.36344748,0.00012027,15]
[346565509,1735095042973,-311.63655252,0.00012027,15]
[346565510,1735095042982,-916.86105748,0.00012027,15]
[346565511,1735095042993,-83.13894252,0.00012027,15]
[346565512,1735095043003,-788.49,0.00012043,2]
[346565513,1735095043013,-353.7755509,0.0001232,2]
[346565514,1735095043024,-7.9234491,0.0001232,2]
[346565515,1735095043033,-152.45,0.00012419,2]
[346565516,1735095043042,-201.33,0.00012654,2]
[346565517,1735095043052,-200.95,0.00012654,2]
[346565518,1735095043061,-203.28,0.00012654,2]
[346565519,1735095043070,-1059.63156376,0.00012693,2]
[346565520,1735095043080,-200.33,0.00012718,2]
[346565521,1735095043089,-202.78,0.00012718,2]
[346565522,1735095043098,-203.34,0.00012718,2]
[346565523,1735095043107,-61.08498714,0.00012718,2]
[346565524,1735095043204,-142.17501286,0.00012718,2]
[346565525,1735095043213,-201.95,0.00012783,2]
[346565526,1735095043222,-153.0,0.00012787,2]
[346565527,1735095043231,-2.87498714,0.00012787,2]
[346565528,1735095043242,-150.12501286,0.00012787,2]
[346565529,1735095043252,-153.0,0.00012787,2]
[346565530,1735095043262,-153.0,0.00012787,2]
[346565531,1735095043271,-30.98007274,0.00012787,2]
[346565532,1735095043282,-122.01992726,0.00012787,2]
[346565533,1735095043291,-648.67620872,0.000129,2]
[346565534,1735095043302,-610.98651663,0.000129,2]
[346565535,1735095043312,-302.43,0.000129,2]
[346565536,1735095043459,-3001.52839714,0.000129,2]
[346565537,1735095043468,-500.0,0.00012957,2]
[346565538,1735095043478,-500.0,0.00012957,2]
[346565539,1735095043487,-500.0,0.00012957,2]
[346565540,1735095043497,-500.0,0.00012957,2]
[346565541,1735095043506,-866.25,0.00012957,2]
[346565542,1735095043516,-500.0,0.00012957,2]
[346565543,1735095043525,-500.0,0.00012957,2]
[346565544,1735095043534,-1248.82,0.00012957,2]
[346565545,1735095043543,-719.83,0.00012957,2]
[346565546,1735095043553,-500.0,0.00012957,2]
[346565547,1735095043562,-500.0,0.00012957,2]
[346565548,1735095043571,-500.0,0.00012957,2]
[346565549,1735095043581,-500.0,0.00012957,2]
[346565550,1735095043590,-665.29,0.00012957,2]
[346565551,1735095043599,-1243.4,0.00012957,2]
[346565552,1735095043609,-500.0,0.00012957,2]
[346565553,1735095043619,-934.68,0.00012957,2]
[346565554,1735095043628,-500.0,0.00012957,2]
[346565555,1735095043638,-500.0,0.00012957,2]
[346565556,1735095043648,-500.0,0.00012957,2]
[346565557,1735095043658,-500.0,0.00012957,2]
[346565558,1735095043667,-782.1,0.00012957,2]
[346565559,1735095043677,-919.18,0.00012957,2]
[346565560,1735095043686,-720.64,0.00012957,2]
[346565561,1735095043695,-500.0,0.00012957,2]
[346565562,1735095043705,-500.0,0.00012957,2]
[346565563,1735095043715,-500.0,0.00012957,2]
[346565564,1735095043725,-370.43166536,0.00012957,2]
[346565565,1735095043734,-923.91,0.00012957,2]
[346565566,1735095043743,-858.54,0.00012957,2]
[346565567,1735095043753,-397.96213139,0.00012957,2]
[346565568,1735095043762,-500.0,0.00012957,2]
[346565569,1735095043772,-552.5,0.00012957,2]
[346565570,1735095043782,-500.0,0.00012957,2]
[346565571,1735095043792,-500.0,0.00012957,2]
[346565572,1735095043801,-1082.44,0.00012957,2]
[346565573,1735095043811,-1130.34,0.00012957,2]
[346565574,1735095043820,-602.25941392,0.00012957,2]
[346565575,1735095043830,-500.0,0.00012957,2]
[346565576,1735095043840,-500.0,0.00012957,2]
[346565577,1735095043850,-650.96,0.00012957,2]
[346565578,1735095043864,-421.69836956,0.00012957,2]
[346565580,1735095043875,-500.0,0.00012957,2]
[346565582,1735095043885,-500.0,0.00012957,2]
[346565583,1735095043894,-500.0,0.00012957,2]
[346565584,1735095043905,-633.47,0.00012957,2]
[346565585,1735095043914,-500.0,0.00012957,2]
[346565586,1735095043923,-500.0,0.00012957,2]
[346565587,1735095043932,-1533.17,0.00012957,2]
[346565588,1735095043941,-500.0,0.00012957,2]
[346565589,1735095043950,-620.49,0.00012957,2]
[346565590,1735095043959,-500.0,0.00012957,2]
[346565591,1735095043969,-845.3,0.00012957,2]
[346565592,1735095043978,-500.0,0.00012957,2]
[346565593,1735095043987,-500.0,0.00012957,2]
[346565594,1735095043996,-1342.9,0.00012957,2]
[346565595,1735095044006,-500.0,0.00012957,2]
[346565596,1735095044015,-500.0,0.00012957,2]
[346565597,1735095044024,-500.0,0.00012957,2]
[346565598,1735095044034,-500.0,0.00012957,2]
[346565599,1735095044043,-2989.26,0.00012957,2]
[346565600,1735095044052,-500.0,0.00012957,2]
[346565601,1735095044061,-500.0,0.00012957,2]
[346565602,1735095044070,-500.0,0.00012957,2]
[346565603,1735095044079,-500.0,0.00012957,2]
[346565604,1735095044089,-500.0,0.00012957,2]
[346565605,1735095044098,-2282.74,0.00012957,2]
[346565606,1735095044109,-500.0,0.00012957,2]
[346565607,1735095044119,-630.97,0.00012957,2]
[346565608,1735095044129,-4921.63,0.00012957,2]
[346565609,1735095044139,-1158.12,0.00012957,2]
[346565610,1735095044148,-500.0,0.00012957,2]
[346565611,1735095044157,-500.0,0.00012957,2]
[346565612,1735095044167,-500.0,0.00012957,2]
[346565613,1735095044176,-7789.97,0.00012957,2]
[346565614,1735095044185,-500.0,0.00012957,2]
[346565615,1735095044195,-359.88064284,0.00012957,2]
[346565616,1735095044208,-698.07935716,0.00012957,2]
[346565617,1735095044217,-1846.00984842,0.00012957,2]
[346565620,1735095046062,-2953.9368229,0.00012957,2]
[346565621,1735095046073,-3469.59332868,0.00012957,2]
[346565622,1735095046083,-403.46792399,0.00012957,2]
[346565623,1735095046092,-235.99762332,0.00012957,2]
[346565624,1735095046207,-264.00237668,0.00012957,2]
[346565625,1735095046217,-235.99762332,0.00012957,2]
[346565630,1735095046517,-264.00237668,0.00012957,2]
[346565631,1735095046527,-500.0,0.00012957,2]
[346565632,1735095046536,-618.49762332,0.00012957,2]
[346565633,1735095046547,-305.37491309,0.00012957,2]
[346565642,1735096091356,80444.95,0.00019,120]
[346565669,1735096232023,-778.91,9.714e-05,2]
[346565671,1735096232033,-285.91,0.00010137,2]
[346565673,1735096232044,-487.92242706,0.00010354,2]
[346565675,1735096232053,-308.45043448,0.000111,2]
[346565676,1735096232243,-748.54956552,0.000111,2]
[346565677,1735096232252,-250.0,0.00011294,2]
[346565678,1735096232262,-300.0,0.00011307,2]
[346565679,1735096232271,-262.55,0.00011466,2]
[346565680,1735096232280,-250.0,0.00011519,2]
[346565681,1735096232289,-350.82,0.00011523,2]
[346565682,1735096232300,-1000.0,0.00011536,2]
[346565683,1735096232310,-222.77,0.00011549,2]
[346565684,1735096232319,-1500.0,0.00011602,2]
[346565685,1735096232328,-1500.0,0.00011655,2]
[346565686,1735096232338,-1057.0,0.00011685,2]
[346565687,1735096232347,-203.89,0.00011685,2]
[346565688,1735096232356,-250.0,0.0001185,2]
[346565689,1735096232366,-300.0,0.00011943,2]
[346565690,1735096232375,-201.29,0.00011944,2]
[346565691,1735096232384,-200.73,0.00011944,2]
[346565692,1735096232394,-203.59,0.00011944,2]
[346565693,1735096232403,-202.34,0.00011944,2]
[346565694,1735096232412,-202.31,0.00011944,2]
[346565695,1735096232423,-201.51,0.00011944,2]
[346565696,1735096232432,-202.72,0.00011944,2]
[346565697,1735096232443,-202.13,0.00011944,2]
[346565698,1735096232452,-200.16,0.00011944,2]
[346565699,1735096232462,-200.11,0.00011944,2]
[346565700,1735096232471,-200.57,0.00011944,2]
[346565701,1735096232482,-201.34,0.00011944,2]
[346565702,1735096232492,-200.25,0.00011949,2]
[346565703,1735096232502,-778.91,0.00011978,2]
[346565704,1735096232511,-1013.74951087,0.00012,2]
[346565705,1735096232520,-551.86423419,0.00012006,2]
[346565706,1735096232530,-201.11,0.00012023,2]
[346565707,1735096232541,-200.54,0.00012023,2]
[346565708,1735096232551,-1057.0,0.000123,2]
[346565709,1735096232560,-358.408,0.0001231,2]
[346565710,1735096232569,-76.00707808,0.00012333,2]
[346565711,1735096232581,-77.99292192,0.00012333,2]
[346565712,1735096232591,-262.79,0.00012333,2]
[346565713,1735096232600,-154.0,0.00012333,2]
[346565714,1735096232609,-156.69,0.00012333,2]
[346565715,1735096232618,-558.84017411,0.000128,2]
[346565716,1735096232630,-574.23912778,0.000128,2]
[346565725,1735096232822,-4.34325835,0.000128,2]
[346565726,1735096232832,-883.93616978,0.00012854,2]
[346565727,1735096237976,-591.89310825,0.00012854,2]
[346565729,1735096237985,-201.93,0.00012857,2]
[346565731,1735096237994,-1475.82927802,0.00012859,2]
[346565732,1735096238003,-1475.82927802,0.00012864,2]
[346565733,1735096238012,-1475.82927802,0.00012869,2]
[346565734,1735096238022,-1475.82927802,0.00012874,2]
[346565735,1735096238031,-1475.82927802,0.0001288,2]
[346565736,1735096238040,-1475.82927802,0.00012885,2]
[346565737,1735096238050,-1475.82927802,0.0001289,2]
[346565738,1735096238059,-1475.82927802,0.00012895,2]
[346565739,1735096238068,-203.48,0.000129,2]
[346565740,1735096238077,-1475.82927802,0.000129,2]
[346565741,1735096238087,-807.085,0.00012914,2]
[346565742,1735096238096,-1057.0,0.00012914,2]